[Event "FIDE Open Sachove Univerzity QCC"]
[Site "Ceske Budejovice"]
[Date "2020.07.02"]
[Round "2.25"]
[White "Zachar, Jaroslav"]
[Black "Jilek, Pavel"]
[Result "1-0"]
[ECO "D35"]
[WhiteElo "1831"]
[BlackElo "1234"]
[Annotator "NA"]
[PlyCount "79"]
[EventDate "2020.07.01"]
[EventType "swiss"]
[EventCountry "CZE"]
[SourceTitle "playchess.com"]
[Source "ChessBase"]
[SourceQuality "1"]
[TimeControl "40/5400+30:1800+30"]

1. d4 {[%emt 0:00:01]} d5 {[%emt 0:00:18]} 2. e3 {[%emt 0:02:02]} Nf6 {[%emt 0:01:40]} 3. c4 {[%emt 0:01:29]} b6 {[%emt 0:02:34]} 4. Nc3 {[%emt 0:02:39]} e6 {[%emt 0:01:40]} 5. f4 {[%emt 0:05:20] [#]} Bd7 $146 {[%emt 0:02:34]} (5... Bd6 $11) ({Predecessor:} 5... Bb4 6. Bd2 Bxc3 7. Bxc3 Ne4 8. Nf3 O-O 9. cxd5 exd5 10. Bd3 Nd7 11. O-O Ndf6 12. Be1 Qd6 {0-1 (32) Rey,T-Krebel,A (1765) Goch 2014}) 6. Nf3 {[%emt 0:00:16] D35: Queen's Gambit Declined: Exchange Variation.} Bd6 {[%emt 0:02:24]} 7. Ne5 {[%emt 0:03:14]} Qe7 {[%emt 0:05:32]} 8. Bd3 {[%emt 0:09:29]} Nc6 {[%emt 0:03:46]} (8... O-O $14) 9. O-O {[%emt 0:01:14]} Nb4 {[%emt 0:05:54]} 10. Bb1 {[%emt 0:02:38]} c5 {[%emt 0:02:50]} 11. a3 {[%emt 0:01:41]} Nc6 {[%emt 0:03:22]} 12. Bd2 {[%emt 0:02:09]} cxd4 {[%emt 0:02:54]} 13. Nxc6 {[%emt 0:00:24]} Bxc6 {[%emt 0:03:05]} 14. exd4 {[%emt 0:00:30]} dxc4 {[%emt 0:00:30]} 15. a4 {[%emt 0:01:48]} a6 {[%emt 0:03:28]} 16. Qe2 {[%emt 0:03:10]} Qb7 {[%emt 0:05:47]} 17. f5 {[%emt 0:00:06]} Bd7 {[%emt 0:08:43]} 18. Bg5 {[%emt 0:03:11]} ({White should play} 18. fxe6 $18 fxe6 19. Be4 (19. Qxc4 O-O $14) 19... Nxe4 20. Nxe4) 18... Qc7 $2 {[%emt 0:03:43]} (18... O-O-O $16) 19. g3 $2 {[%emt 0:01:00]} (19. fxe6 $18 Bxe6 20. Bxf6 gxf6 21. Nd5) 19... Qc6 $2 {[%emt 0:04:23]} ({Black should try} 19... e5 $14) 20. Bxf6 {[%emt 0:01:17]} gxf6 {[%emt 0:01:02]} 21. Be4 {[%emt 0:00:14]} Qc8 {[%emt 0:01:37]} 22. Bxa8 {[%emt 0:00:31]} Qxa8 {[%emt 0:00:30]} 23. fxe6 {[%emt 0:00:48]} Bxe6 {[%emt 0:03:54]} 24. Ne4 {[%emt 0:01:14]} Be7 {[%emt 0:02:37]} 25. Nxf6+ {[%emt 0:00:39]} Kf8 {[%emt 0:05:36]} 26. Nh5 {[%emt 0:01:24]} Qd5 {[%emt 0:03:56]} 27. Rad1 {[%emt 0:01:27]} Rg8 {[%emt 0:02:23]} 28. Nf4 {[%emt 0:00:30]} Bg4 {[%emt 0:02:13]} 29. Qxg4 {[%emt 0:07:25]} Rxg4 {[%emt 0:00:57]} 30. Nxd5 {[%emt 0:00:35]} Bd8 {[%emt 0:05:39]} 31. Rf4 {[%emt 0:01:06]} Rg6 $18 {[%emt 0:02:17]} 32. Rdf1 {[%emt 0:00:10]} Rg7 {[%emt 0:01:59]} 33. Ne3 {[%emt 0:10:00]} b5 {[%emt 0:02:42]} 34. Nf5 {[%emt 0:01:22]} Rg6 {[%emt 0:02:02]} 35. Kg2 {[%emt 0:00:16]} bxa4 {[%emt 0:01:09]} 36. d5 {[%emt 0:00:12]} c3 {[%emt 0:00:47]} 37. bxc3 {[%emt 0:00:52]} Bf6 {[%emt 0:00:19]} 38. Nh4 {[%emt 0:00:30]} Bxh4 {[%emt 0:01:43]} 39. Rxh4 {[%emt 0:00:31]} Rg7 {[%emt 0:00:30]} 40. Rxa4 {[%emt 0:00:26]} 1-0

[Event "FIDE Open Sachove Univerzity QCC"]
[Site "Ceske Budejovice"]
[Date "2020.07.02"]
[Round "2.26"]
[White "Komarek, Tobias"]
[Black "Kanka, Lukas"]
[Result "0-1"]
[ECO "C50"]
[WhiteElo "1246"]
[BlackElo "1667"]
[Annotator "NA"]
[PlyCount "108"]
[EventDate "2020.07.01"]
[EventType "swiss"]
[EventCountry "CZE"]
[SourceTitle "playchess.com"]
[Source "ChessBase"]
[SourceQuality "1"]
[TimeControl "40/5400+30:1800+30"]

1. e4 {[%emt 0:00:00]} e5 {[%emt 0:00:30]} 2. Nf3 {[%emt 0:00:05]} Nc6 {[%emt 0:00:30]} 3. Bc4 {[%emt 0:00:11]} Bc5 {[%emt 0:00:05]} 4. O-O {[%emt 0:00:35]} Nf6 {[%emt 0:01:08]} 5. d3 {[%emt 0:00:30]} h6 {[%emt 0:00:30]} 6. Nc3 {[%emt 0:00:15]} d6 {[%emt 0:00:22]} 7. h3 {[%emt 0:00:24]} Be6 {[%emt 0:00:21]} 8. Bb3 {[%emt 0:00:09]} Qd7 {[%emt 0:02:00]} 9. Kh2 {[%emt 0:02:30]} O-O-O {[%emt 0:01:41]} 10. Be3 {[%emt 0:07:38]} g5 {[%emt 0:04:32]} 11. Bxe6 {[%emt 0:02:18]} Qxe6 {[%emt 0:01:31]} 12. Bxc5 {[%emt 0:12:32]} dxc5 {[%emt 0:00:23]} 13. Qe2 {[%emt 0:15:41]} g4 {[%emt 0:01:36]} 14. Nh4 {[%emt 0:14:18]} Nd4 {[%emt 0:01:47]} 15. Qd1 {[%emt 0:03:32]} Rdg8 {[%emt 0:05:23]} 16. f4 {[%emt 0:07:35]} exf4 {[%emt 0:03:42]} 17. Rxf4 {[%emt 0:02:09]} gxh3 {[%emt 0:01:57]} 18. gxh3 {[%emt 0:01:32]} Qe5 {[%emt 0:00:29]} 19. Qf1 {[%emt 0:02:13]} Nh5 {[%emt 0:00:27]} 20. Nd5 {[%emt 0:02:12]} Nxf4 {[%emt 0:02:49]} 21. Qxf4 {[%emt 0:01:01]} Qxf4+ {[%emt 0:01:13]} 22. Nxf4 {[%emt 0:00:13]} Nxc2 {[%emt 0:01:46]} 23. Rc1 {[%emt 0:00:27]} Nb4 {[%emt 0:00:27]} 24. a3 {[%emt 0:00:49]} Na6 {[%emt 0:01:40]} 25. Nf5 {[%emt 0:03:38]} Re8 {[%emt 0:02:19]} 26. b4 {[%emt 0:03:08]} cxb4 {[%emt 0:02:32]} 27. Nd6+ {[%emt 0:00:20]} Kd7 {[%emt 0:01:07]} 28. Nxe8 {[%emt 0:00:15]} Rxe8 {[%emt 0:00:15]} 29. axb4 {[%emt 0:00:27]} c6 {[%emt 0:01:12]} 30. Rb1 {[%emt 0:00:56]} Re5 {[%emt 0:00:36]} 31. Kg3 {[%emt 0:01:30]} Rb5 {[%emt 0:00:38]} 32. Kg4 {[%emt 0:02:23]} Nxb4 {[%emt 0:00:14]} 33. h4 {[%emt 0:00:48]} a5 {[%emt 0:00:24]} 34. Ne2 {[%emt 0:01:10]} h5+ {[%emt 0:00:10]} 35. Kf3 {[%emt 0:00:28]} Nxd3 {[%emt 0:00:36]} 36. Rxb5 {[%emt 0:01:21]} cxb5 {[%emt 0:00:08]} 37. Nd4 {[%emt 0:06:26]} b4 {[%emt 0:01:20]} 38. Ke3 {[%emt 0:00:44]} Nc5 {[%emt 0:00:26]} 39. Kd2 {[%emt 0:02:47]} Nxe4+ {[%emt 0:00:24]} 40. Ke3 {[%emt 0:00:31]} Nd6 {[%emt 0:00:25]} 41. Kf4 {[%emt 0:31:11]} a4 {[%emt 0:30:30]} 42. Nc2 {[%emt 0:00:45]} b3 {[%emt 0:00:21]} 43. Na3 {[%emt 0:00:24]} b5 {[%emt 0:00:08]} 44. Kg5 {[%emt 0:00:18]} b4 {[%emt 0:00:04]} 45. Nb1 {[%emt 0:00:40]} a3 {[%emt 0:00:17]} 46. Nd2 {[%emt 0:00:43]} b2 {[%emt 0:00:05]} 47. Kxh5 {[%emt 0:00:20]} a2 {[%emt 0:00:05]} 48. Kg5 {[%emt 0:00:33]} b1=Q {[%emt 0:00:12]} 49. Nxb1 {[%emt 0:00:07]} axb1=Q {[%emt 0:00:06]} 50. h5 {[%emt 0:00:11]} Qf5+ {[%emt 0:00:08]} 51. Kh6 {[%emt 0:00:22]} Qf6+ {[%emt 0:00:14]} 52. Kh7 {[%emt 0:00:15]} Ne8 {[%emt 0:00:03]} 53. h6 {[%emt 0:01:43]} Qg6+ {[%emt 0:00:06]} 54. Kh8 {[%emt 0:00:14]} f5 {[%emt 0:00:31]} 0-1

[Event "FIDE Open Sachove Univerzity QCC"]
[Site "Ceske Budejovice"]
[Date "2020.07.02"]
[Round "2.27"]
[White "Berkovec, Jakub"]
[Black "Smola, David"]
[Result "0-1"]
[ECO "C45"]
[WhiteElo "1224"]
[BlackElo "1649"]
[Annotator "NA"]
[PlyCount "36"]
[EventDate "2020.07.01"]
[EventType "swiss"]
[EventCountry "CZE"]
[SourceTitle "playchess.com"]
[Source "ChessBase"]
[SourceQuality "1"]
[TimeControl "40/5400+30:1800+30"]

1. e4 {[%emt 0:00:00]} e5 {[%emt 0:00:00]} 2. Nf3 {[%emt 0:00:03]} Nc6 {[%emt 0:00:19]} 3. d4 {[%emt 0:01:11]} exd4 {[%emt 0:00:45]} 4. Nxd4 {[%emt 0:00:50]} Bc5 {[%emt 0:01:08]} 5. Nb3 {[%emt 0:01:09]} Bb6 {[%emt 0:01:19]} 6. Nc3 {[%emt 0:01:43]} Qf6 {[%emt 0:03:53]} 7. Qe2 {[%emt 0:02:50]} Nge7 {[%emt 0:02:11]} 8. Be3 {[%emt 0:03:20]} O-O {[%emt 0:03:33]} 9. O-O-O {[%emt 0:03:15]} d6 {[%emt 0:02:45]} 10. Bxb6 {[%emt 0:02:17]} axb6 {[%emt 0:01:11]} 11. f3 {[%emt 0:02:14]} Be6 {[%emt 0:02:18]} 12. Qf2 {[%emt 0:05:37]} Nb4 {[%emt 0:04:59]} 13. a3 {[%emt 0:03:56]} Bxb3 {[%emt 0:05:33]} 14. cxb3 {[%emt 0:02:44]} Rxa3 {[%emt 0:02:38]} 15. Qd4 {[%emt 0:10:24]} Ra1+ {[%emt 0:06:40]} 16. Nb1 {[%emt 0:02:30]} Qg5+ {[%emt 0:02:48]} 17. Qd2 {[%emt 0:02:03]} Qc5+ {[%emt 0:00:59]} 18. Qc3 {[%emt 0:03:08]} Na2+ {[%emt 0:00:26]} 0-1

[Event "FIDE Open Sachove Univerzity QCC"]
[Site "Ceske Budejovice"]
[Date "2020.07.02"]
[Round "2.28"]
[White "Zezula, Jakub"]
[Black "Postl, Frantisek"]
[Result "1-0"]
[ECO "C42"]
[WhiteElo "1449"]
[BlackElo "1188"]
[Annotator "NA"]
[PlyCount "61"]
[EventDate "2020.07.01"]
[EventType "swiss"]
[EventCountry "CZE"]
[SourceTitle "playchess.com"]
[Source "ChessBase"]
[SourceQuality "1"]
[TimeControl "40/5400+30:1800+30"]

1. e4 {[%emt 0:00:00]} e5 {[%emt 0:00:00]} 2. Nf3 {[%emt 0:00:00]} Nf6 {[%emt 0:00:15]} 3. Nxe5 {[%emt 0:00:28]} d6 {[%emt 0:00:13]} 4. Nf3 {[%emt 0:00:14]} Nxe4 {[%emt 0:00:14]} 5. d4 {[%emt 0:00:48]} d5 {[%emt 0:01:14]} 6. Bd3 {[%emt 0:01:46]} Bf5 {[%emt 0:01:14]} 7. O-O {[%emt 0:03:17]} Be7 {[%emt 0:00:54]} 8. Bf4 {[%emt 0:05:20]} Nc6 {[%emt 0:02:40]} 9. Nbd2 {[%emt 0:04:15]} Nxd2 {[%emt 0:01:47]} 10. Qxd2 {[%emt 0:00:28]} Bxd3 {[%emt 0:01:53]} 11. Qxd3 {[%emt 0:00:23]} Qd7 {[%emt 0:03:03]} 12. a3 {[%emt 0:03:11]} O-O-O {[%emt 0:01:17]} 13. c4 {[%emt 0:01:21]} dxc4 {[%emt 0:01:36]} 14. Qxc4 {[%emt 0:00:15]} Nxd4 {[%emt 0:01:19]} 15. Nxd4 {[%emt 0:00:18]} g5 {[%emt 0:01:12]} 16. Bg3 {[%emt 0:03:20]} f5 {[%emt 0:00:19]} 17. Nxf5 {[%emt 0:01:17]} Rhf8 {[%emt 0:01:46]} 18. Nxe7+ {[%emt 0:01:02]} Qxe7 {[%emt 0:00:15]} 19. Rac1 {[%emt 0:02:20]} c6 {[%emt 0:00:26]} 20. Qg4+ {[%emt 0:00:31]} Qd7 {[%emt 0:00:35]} 21. Qxd7+ {[%emt 0:00:39]} Rxd7 {[%emt 0:00:19]} 22. Rcd1 {[%emt 0:00:07]} Rxd1 {[%emt 0:00:53]} 23. Rxd1 {[%emt 0:00:06]} Re8 {[%emt 0:00:12]} 24. Kf1 {[%emt 0:00:14]} b5 {[%emt 0:00:32]} 25. Rd6 {[%emt 0:01:28]} c5 {[%emt 0:03:12]} 26. Rc6+ {[%emt 0:01:11]} Kd7 {[%emt 0:00:17]} 27. Rxc5 {[%emt 0:00:00]} a6 {[%emt 0:00:14]} 28. Rxg5 {[%emt 0:01:10]} Ke6 {[%emt 0:01:30]} 29. Re5+ {[%emt 0:00:15]} Kf7 {[%emt 0:00:15]} 30. Rxe8 {[%emt 0:00:08]} Kxe8 {[%emt 0:00:09]} 31. Ke2 {[%emt 0:00:05]} 1-0

[Event "FIDE Open Sachove Univerzity QCC"]
[Site "Ceske Budejovice"]
[Date "2020.07.02"]
[Round "2.29"]
[White "Stavova, Marketa"]
[Black "Dudkova, Josefina"]
[Result "1/2-1/2"]
[ECO "B50"]
[WhiteElo "1219"]
[BlackElo "1447"]
[Annotator "NA"]
[PlyCount "83"]
[EventDate "2020.07.01"]
[EventType "swiss"]
[EventCountry "CZE"]
[SourceTitle "playchess.com"]
[Source "ChessBase"]
[SourceQuality "1"]
[TimeControl "40/5400+30:1800+30"]

1. e4 {[%emt 0:00:00]} c5 {[%emt 0:00:08]} 2. Nf3 {[%emt 0:01:13]} d6 {[%emt 0:00:25]} 3. h3 {[%emt 0:01:02]} Nf6 {[%emt 0:01:11]} 4. c3 {[%emt 0:00:32]} g6 {[%emt 0:02:34]} 5. d3 {[%emt 0:03:00]} Bg7 {[%emt 0:01:58]} 6. Be3 {[%emt 0:01:50]} Nc6 {[%emt 0:03:58]} 7. Nbd2 {[%emt 0:02:40]} a6 {[%emt 0:09:45]} 8. d4 {[%emt 0:05:11]} cxd4 {[%emt 0:01:19]} 9. cxd4 {[%emt 0:02:12]} e6 {[%emt 0:07:05]} 10. Be2 {[%emt 0:05:32]} Bd7 {[%emt 0:03:36]} 11. O-O {[%emt 0:05:43]} O-O {[%emt 0:01:20]} 12. Qb3 {[%emt 0:07:17]} b5 {[%emt 0:05:50]} 13. Rac1 {[%emt 0:04:25]} Qe7 {[%emt 0:07:28]} 14. e5 {[%emt 0:03:38]} Nd5 {[%emt 0:03:32]} 15. exd6 {[%emt 0:04:19]} Qxd6 {[%emt 0:00:34]} 16. Ne4 {[%emt 0:02:55]} Qe7 {[%emt 0:05:17]} 17. Bg5 {[%emt 0:05:08]} Qe8 {[%emt 0:08:59]} 18. Rfd1 {[%emt 0:10:11]} h6 {[%emt 0:11:35]} 19. Bh4 {[%emt 0:02:18]} g5 {[%emt 0:02:04]} 20. Bg3 {[%emt 0:01:19]} f5 {[%emt 0:03:43]} 21. Nc5 {[%emt 0:04:16]} Qe7 {[%emt 0:04:06]} 22. Be5 {[%emt 0:04:17]} Bxe5 {[%emt 0:02:18]} 23. Nxe5 {[%emt 0:01:06]} Nxe5 {[%emt 0:00:20]} 24. dxe5 {[%emt 0:00:14]} Rfc8 {[%emt 0:02:20]} 25. Nxd7 {[%emt 0:02:44]} Qxd7 {[%emt 0:00:21]} 26. Rxc8+ {[%emt 0:00:54]} Rxc8 {[%emt 0:00:59]} 27. Bf3 {[%emt 0:01:53]} Rd8 {[%emt 0:02:44]} 28. Qa3 {[%emt 0:03:05]} Qa7 {[%emt 0:02:59]} 29. Bxd5 {[%emt 0:02:11]} exd5 {[%emt 0:00:43]} 30. e6 {[%emt 0:03:12]} Re8 {[%emt 0:03:02]} 31. Rxd5 {[%emt 0:01:10]} Rxe6 {[%emt 0:00:24]} 32. Rxf5 {[%emt 0:00:47]} Re7 {[%emt 0:02:33]} 33. Qd6 {[%emt 0:01:17]} Qd7 {[%emt 0:00:47]} 34. Qxd7 {[%emt 0:00:56]} Rxd7 {[%emt 0:00:09]} 35. Rf6 {[%emt 0:00:07]} Rd2 {[%emt 0:00:14]} 36. Rxh6 {[%emt 0:00:40]} Rxb2 {[%emt 0:00:17]} 37. Rxa6 {[%emt 0:00:05]} Kh7 {[%emt 0:00:21]} 38. Rb6 {[%emt 0:01:00]} b4 {[%emt 0:00:37]} 39. g4 {[%emt 0:00:44]} Kg7 {[%emt 0:00:28]} 40. Kf1 {[%emt 0:01:14]} Kf7 {[%emt 0:00:36]} 41. f3 {[%emt 0:30:50]} Kg7 {[%emt 0:30:24]} 42. Ke1 {[%emt 0:00:16]} 1/2-1/2

[Event "FIDE Open Sachove Univerzity QCC"]
[Site "Ceske Budejovice"]
[Date "2020.07.03"]
[Round "3.1"]
[White "Chval, Petr"]
[Black "Rychlik, Zdenek"]
[Result "0-1"]
[ECO "B25"]
[WhiteElo "1926"]
[BlackElo "1701"]
[Annotator "ChessBase"]
[PlyCount "90"]
[EventDate "2020.07.01"]
[EventType "swiss"]
[EventCountry "CZE"]
[SourceTitle "playchess.com"]
[Source "ChessBase"]
[SourceQuality "1"]
[TimeControl "40/5400+30:1800+30"]

1. e4 {[%emt 0:00:00]} c5 {[%emt 0:01:10]} 2. Nf3 {[%emt 0:00:43]} g6 {[%emt 0:00:11]} 3. g3 {[%emt 0:04:24]} Bg7 {[%emt 0:00:11]} 4. Bg2 {[%emt 0:00:10]} Nc6 {[%emt 0:00:06]} 5. O-O {[%emt 0:00:21]} Nf6 {[%emt 0:04:48]} 6. Re1 {[%emt 0:04:10]} O-O {[%emt 0:02:38]} 7. Nc3 {[%emt 0:02:46]} d6 {[%emt 0:03:26]} 8. d3 {[%emt 0:03:14]} a6 {[%emt 0:01:57]} 9. Bg5 {[%emt 0:02:06]} h6 {[%emt 0:04:13]} 10. Bd2 {[%emt 0:00:36]} e5 {[%emt 0:06:55]} 11. Qc1 {[%emt 0:01:58]} Kh7 {[%emt 0:02:02]} 12. a4 {[%emt 0:01:18]} Be6 {[%emt 0:02:11]} 13. Nd1 {[%emt 0:12:11]} b5 {[%emt 0:05:35]} 14. Ne3 {[%emt 0:12:48]} Qd7 {[%emt 0:07:42]} 15. c4 {[%emt 0:03:39]} b4 {[%emt 0:07:36]} 16. Nd5 {[%emt 0:01:30]} Qd8 {[%emt 0:05:57]} 17. Be3 {[%emt 0:06:04]} a5 {[%emt 0:07:49]} 18. Qd1 {[%emt 0:04:11]} Rb8 {[%emt 0:04:35]} 19. b3 {[%emt 0:00:09]} Qd7 {[%emt 0:00:57]} 20. Ra2 {[%emt 0:01:55]} Ng4 {[%emt 0:01:09]} 21. Rf1 {[%emt 0:09:34]} f5 {[%emt 0:02:20]} 22. exf5 {[%emt 0:00:37]} Rxf5 {[%emt 0:02:29]} 23. Nh4 {[%emt 0:08:43]} Rf7 {[%emt 0:17:56]} 24. Bc1 {[%emt 0:09:34]} Ne7 {[%emt 0:02:28]} 25. Nxe7 {[%emt 0:01:30]} Rxe7 {[%emt 0:04:01]} 26. Be4 {[%emt 0:04:00]} Bf5 {[%emt 0:00:11]} 27. Nxf5 {[%emt 0:00:10]} gxf5 {[%emt 0:00:12]} 28. Bg2 {[%emt 0:00:06]} Rf8 {[%emt 0:00:17]} 29. h3 {[%emt 0:01:01]} Nf6 {[%emt 0:00:08]} 30. Rd2 {[%emt 0:00:58]} Qe8 {[%emt 0:00:21]} 31. Bb2 {[%emt 0:00:16]} Nd7 {[%emt 0:00:25]} 32. Qf3 {[%emt 0:01:48]} Qc8 {[%emt 0:00:51]} 33. Qd5 {[%emt 0:00:20]} Qc7 {[%emt 0:00:20]} 34. f4 {[%emt 0:01:13]} Nf6 {[%emt 0:00:11]} 35. Qf3 {[%emt 0:01:00]} e4 {[%emt 0:00:09]} 36. Qd1 {[%emt 0:00:16]} d5 {[%emt 0:00:24]} 37. cxd5 {[%emt 0:00:17]} Nxd5 {[%emt 0:00:02]} 38. Re1 {[%emt 0:01:44]} Nc3 {[%emt 0:00:43]} 39. Qc1 {[%emt 0:01:22]} e3 {[%emt 0:01:56]} 40. Rc2 {[%emt 0:00:12]} Qd6 {[%emt 0:01:20]} 41. Bxc3 {[%emt 0:02:13]} Bxc3 {[%emt 0:02:04]} 42. Rxc3 {[%emt 0:00:06]} bxc3 {[%emt 0:00:12]} 43. Qxc3 {[%emt 0:00:03]} Qd4 {[%emt 0:00:37]} 44. Qxa5 {[%emt 0:01:01]} Rg8 {[%emt 0:01:19]} 45. b4 {[%emt 0:01:21]} Qb2 {[%emt 0:02:43]} 0-1

[Event "FIDE Open Sachove Univerzity QCC"]
[Site "Ceske Budejovice"]
[Date "2020.07.03"]
[Round "3.2"]
[White "Svanda, Adam"]
[Black "Macho, Miloslav"]
[Result "1-0"]
[ECO "A26"]
[WhiteElo "1870"]
[BlackElo "1671"]
[Annotator "NA"]
[PlyCount "101"]
[EventDate "2020.07.01"]
[EventType "swiss"]
[EventCountry "CZE"]
[SourceTitle "playchess.com"]
[Source "ChessBase"]
[SourceQuality "1"]
[TimeControl "40/5400+30:1800+30"]

1. c4 {[%emt 0:00:00]} g6 {[%emt 0:01:23]} 2. g3 {[%emt 0:00:00]} Bg7 {[%emt 0:00:14]} 3. Bg2 {[%emt 0:00:04]} e5 {[%emt 0:01:50]} 4. Nc3 {[%emt 0:00:17]} Nc6 {[%emt 0:00:54]} 5. Nf3 {[%emt 0:00:23]} Nf6 {[%emt 0:00:34]} 6. O-O {[%emt 0:01:01]} O-O {[%emt 0:00:30]} 7. d3 {[%emt 0:01:39]} d6 {[%emt 0:01:04]} 8. Bg5 {[%emt 0:01:26]} h6 {[%emt 0:02:37]} 9. Bxf6 {[%emt 0:00:45]} Bxf6 {[%emt 0:00:20]} 10. Rb1 {[%emt 0:00:48]} Rb8 {[%emt 0:00:50] A26: English Opening vs King's Indian with ...Nc6 and d3.} 11. b4 {[%emt 0:00:15]} Bg4 {[%emt 0:02:03] [#]} 12. b5 $146 {[%emt 0:03:48]} ({Predecessor:} 12. Nd5 Bg7 13. b5 Nd4 14. e3 Nxf3+ 15. Bxf3 Bf5 16. Bg4 Bxg4 17. Qxg4 Kh7 18. Rb3 {½-½ (60) Zuelle,B (2112)-Sardy,P (2313) Eger 2004}) 12... Bxf3 {[%emt 0:01:19]} 13. Bxf3 {[%emt 0:00:19]} Nd4 {[%emt 0:01:56]} 14. Bg2 {[%emt 0:00:17]} Qc8 {[%emt 0:16:47]} 15. Nd5 {[%emt 0:13:18]} Kg7 {[%emt 0:02:03]} 16. Nxf6 {[%emt 0:04:29]} Kxf6 {[%emt 0:00:20]} 17. e3 {[%emt 0:00:38]} Ne6 {[%emt 0:02:34]} 18. f4 {[%emt 0:08:28]} exf4 {[%emt 0:04:58]} 19. d4 {[%emt 0:03:24]} Kg7 {[%emt 0:02:39]} 20. exf4 {[%emt 0:00:19]} Qd7 {[%emt 0:06:38]} 21. f5 {[%emt 0:05:40]} Ng5 {[%emt 0:03:57]} 22. Qg4 {[%emt 0:03:36]} f6 {[%emt 0:03:16]} 23. h4 {[%emt 0:00:52]} h5 {[%emt 0:00:14]} 24. Qf4 {[%emt 0:01:01]} Nh7 {[%emt 0:02:46]} 25. fxg6 {[%emt 0:01:00]} Kxg6 {[%emt 0:00:26]} 26. Be4+ {[%emt 0:00:58]} ({Weaker is} 26. b6 axb6 27. Bxb7 f5 $16) 26... f5 {[%emt 0:04:46]} 27. Bf3 {[%emt 0:05:59]} a6 {[%emt 0:07:44]} 28. a4 {[%emt 0:04:30]} axb5 {[%emt 0:01:26]} 29. axb5 {[%emt 0:00:09]} c6 {[%emt 0:00:38]} 30. Rfe1 $18 {[%emt 0:03:50]} Rfe8 {[%emt 0:03:25]} 31. Kf2 {[%emt 0:03:26]} Rxe1 {[%emt 0:01:20]} 32. Rxe1 {[%emt 0:02:34]} Ra8 {[%emt 0:00:58]} 33. d5 {[%emt 0:02:09]} Ra2+ {[%emt 0:00:18]} 34. Kf1 {[%emt 0:01:41]} cxb5 {[%emt 0:07:55]} 35. Re6+ {[%emt 0:01:03]} Kg7 {[%emt 0:01:38]} 36. Qxf5 {[%emt 0:02:08]} Qf7 {[%emt 0:02:23]} 37. Qxf7+ {[%emt 0:00:39]} Kxf7 {[%emt 0:00:02]} 38. Bxh5+ {[%emt 0:00:09]} Kg7 {[%emt 0:01:15]} 39. cxb5 {[%emt 0:00:13]} Nf6 {[%emt 0:01:03]} 40. Bf3 {[%emt 0:01:38]} Rb2 {[%emt 0:03:01]} 41. Re7+ {[%emt 0:30:20]} Kg6 {[%emt 0:30:32]} 42. Rxb7 {[%emt 0:00:33]} Kf5 {[%emt 0:00:45]} 43. b6 {[%emt 0:02:44]} Rb1+ {[%emt 0:03:52]} 44. Kg2 {[%emt 0:00:27]} Rb2+ {[%emt 0:00:05]} 45. Kh3 {[%emt 0:02:47]} Rb3 {[%emt 0:00:28]} 46. Bd1 {[%emt 0:00:17]} Rb5 {[%emt 0:01:49]} 47. Rb8 {[%emt 0:01:26]} Nxd5 {[%emt 0:01:05]} 48. b7 {[%emt 0:00:29]} Nf6 {[%emt 0:03:31]} 49. Bf3 {[%emt 0:00:37]} Rb3 {[%emt 0:00:25]} 50. Rf8 {[%emt 0:00:36]} Rxf3 {[%emt 0:01:08]} 51. b8=Q {[%emt 0:00:14]} 1-0

[Event "FIDE Open Sachove Univerzity QCC"]
[Site "Ceske Budejovice"]
[Date "2020.07.03"]
[Round "3.2"]
[White "Day, Sophia Olivia"]
[Black "Bastyr, Pavel"]
[Result "0-1"]
[ECO "B85"]
[WhiteElo "1099"]
[BlackElo "1439"]
[Annotator "NA RC"]
[PlyCount "130"]
[EventDate "2020.07.01"]
[EventType "swiss"]
[EventCountry "CZE"]
[SourceTitle "playchess.com"]
[Source "ChessBase"]
[SourceQuality "1"]
[TimeControl "40/5400+30:1800+30"]

1. e4 {[%emt 0:00:00]} c5 {[%emt 0:02:09]} 2. Nf3 {[%emt 0:00:05]} d6 {[%emt 0:00:05]} 3. d4 {[%emt 0:00:29]} Nf6 {[%emt 0:00:14]} 4. Nc3 {[%emt 0:00:55]} cxd4 {[%emt 0:00:05]} 5. Nxd4 {[%emt 0:00:15]} a6 {[%emt 0:00:07]} 6. Be2 {[%emt 0:00:52]} e6 {[%emt 0:00:05]} 7. O-O {[%emt 0:01:02]} Qc7 {[%emt 0:00:08]} 8. Be3 {[%emt 0:02:47]} Be7 {[%emt 0:00:17]} 9. f4 {[%emt 0:02:23]} O-O {[%emt 0:00:07]} 10. Rf3 {[%emt 0:04:23]} Nbd7 {[%emt 0:00:21]} 11. Qe1 {[%emt 0:02:13]} Nc5 {[%emt 0:00:51]} 12. Bd3 {[%emt 0:02:34]} Nxd3 {[%emt 0:00:12]} 13. cxd3 {[%emt 0:00:17]} b5 {[%emt 0:01:06]} 14. Rh3 {[%emt 0:01:44]} Bb7 {[%emt 0:00:19]} 15. f5 {[%emt 0:00:56]} e5 {[%emt 0:13:38]} 16. Nf3 {[%emt 0:06:32]} Ng4 {[%emt 0:12:44]} 17. Bd2 {[%emt 0:09:25]} Qc5+ {[%emt 0:03:07]} 18. Kf1 {[%emt 0:04:08]} b4 {[%emt 0:07:34]} 19. Nd1 {[%emt 0:02:57]} a5 {[%emt 0:03:40]} 20. Qg3 {[%emt 0:01:01]} Nf6 {[%emt 0:01:13]} 21. Qh4 {[%emt 0:01:40]} Ba6 {[%emt 0:02:35]} 22. Ne1 {[%emt 0:03:44]} d5 {[%emt 0:04:34]} 23. Bg5 {[%emt 0:01:18]} h6 {[%emt 0:16:06]} 24. Bxh6 {[%emt 0:03:09]} Nxe4 {[%emt 0:00:06]} 25. Qh5 {[%emt 0:01:53]} Nf6 {[%emt 0:18:47]} 26. Qg5 {[%emt 0:04:53]} Ne8 {[%emt 0:00:29]} 27. Qg4 {[%emt 0:00:35]} Qd4 {[%emt 0:01:41]} 28. Qg3 {[%emt 0:01:54]} Bc5 {[%emt 0:00:47]} 29. Nf2 {[%emt 0:04:23]} Qxb2 {[%emt 0:00:41]} 30. Rd1 {[%emt 0:04:03]} Qxf2+ {[%emt 0:00:13]} 31. Qxf2 {[%emt 0:00:23]} Bxf2 {[%emt 0:00:04]} 32. Kxf2 {[%emt 0:00:15]} gxh6 {[%emt 0:00:06]} 33. Rxh6 {[%emt 0:01:00]} Kg7 {[%emt 0:00:37]} 34. Rh5 {[%emt 0:00:53]} Nf6 {[%emt 0:00:16]} 35. Rh4 {[%emt 0:01:18]} Rh8 {[%emt 0:02:10]} 36. Nf3 {[%emt 0:01:38]} Rxh4 {[%emt 0:00:16]} 37. Nxh4 {[%emt 0:00:29]} Rh8 {[%emt 0:00:27]} 38. Nf3 {[%emt 0:00:54]} Ng4+ {[%emt 0:00:08]} 39. Kg3 {[%emt 0:00:27]} Ne3 {[%emt 0:00:39]} 40. Re1 {[%emt 0:00:22]} Nxf5+ {[%emt 0:00:16]} 41. Kg4 {[%emt 0:31:30]} Nh6+ {[%emt 0:30:35]} 42. Kg3 {[%emt 0:00:19]} f6 {[%emt 0:00:06]} 43. Rc1 {[%emt 0:00:57]} Rc8 {[%emt 0:00:38]} 44. Rd1 {[%emt 0:00:52]} Rc2 {[%emt 0:00:25]} 45. d4 {[%emt 0:00:30]} e4 {[%emt 0:02:42]} 46. Ne1 {[%emt 0:00:34]} Rxa2 {[%emt 0:00:08]} 47. Rc1 {[%emt 0:00:13]} Bc4 {[%emt 0:00:36]} 48. h4 {[%emt 0:01:04]} b3 {[%emt 0:00:26]} 49. Rb1 {[%emt 0:01:14]} b2 {[%emt 0:00:37]} 50. Nc2 {[%emt 0:00:36]} Bd3 {[%emt 0:00:11]} 51. Kf2 {[%emt 0:01:09]} Bxc2 {[%emt 0:00:19]} 52. Re1 {[%emt 0:00:29]} Ra1 {[%emt 0:00:09]} 53. Ke2 {[%emt 0:00:34]} Rxe1+ {[%emt 0:00:10]} 54. Kxe1 {[%emt 0:00:17]} b1=Q+ 55. Kf2 {[%emt 0:00:23]} Ng4+ {[%emt 0:00:16]} 56. Kg3 {[%emt 0:00:42]} f5 {[%emt 0:00:19]} 57. Kf4 {[%emt 0:00:38]} Qf1+ {[%emt 0:00:37]} 58. Kg5 {[%emt 0:00:09]} Qxg2 {[%emt 0:01:25]} 59. Kxf5 {[%emt 0:00:14]} e3+ {[%emt 0:00:08]} 60. Ke6 {[%emt 0:00:30]} e2 {[%emt 0:00:30]} 61. h5 {[%emt 0:00:18]} e1=Q+ {[%emt 0:00:54]} 62. Kd6 {[%emt 0:00:36]} Qb4+ {[%emt 0:00:21]} 63. Kc7 {[%emt 0:00:42]} Qg3+ {[%emt 0:00:21]} 64. Kd7 {[%emt 0:00:25]} Ba4+ {[%emt 0:00:09]} 65. Kd8 {[%emt 0:00:10]} Qgd6+ {[%emt 0:00:25]} 0-1